Cogmind - Beta 13 @@@ ROGUE MODE // 2024.06.16 @ 20:16:52 Player: karotgaemin Result: Self-destructed Performance ------------- Evolutions (1) 500 Regions Visited (2) 400 Robots Destroyed (38) 190 Value Destroyed (853) 853 Prototype IDs (0) 0 Alien Tech Used (0) 0 Bonus (0) 0 TOTAL SCORE: 1943 Bonus ------- None Cogmind --------- Core Integrity 185/400 Matter 122/300 Energy 247/250 System Corruption 0% Temperature Hot (237) Movement Core (400) Ox7 Location -9/Materials Parts ------- > --- POWER (1) -------- Ion Engine > --- PROPULSION (2) --- (None) > --- UTILITY (4) ------ Medium Storage Unit Visual Processing Unit Improved Targeting Computer > --- WEAPON (2) ------- Autogun Improved Light Cannon > --- INVENTORY (10) --- Heat Sink Signal Interpreter Beam Rifle Heavy Assault Rifle Peak State ------------ > --- POWER ------------ Improved Ion Engine > --- PROPULSION ------- Light Treads Light Treads > --- UTILITY ---------- Medium Storage Unit Visual Processing Unit Sensor Array Improved Targeting Computer > --- WEAPON ----------- Beam Rifle Heavy Assault Rifle > --- INVENTORY -------- Ion Engine Heat Sink Seismic Detector Light Assault Rifle Autogun Autogun Improved Light Cannon [Rating: 15] Favorites ----------- Power Ion Engine Engine Ion Engine Power Core Light Nuclear Core Propulsion Wheel Treads Light Treads Wheel Wheel Utility Medium Storage Unit Device Seismic Detector Storage Medium Storage Unit Processor Visual Processing Unit Weapon Medium Laser Energy Gun Medium Laser Ballistic Gun Autogun Ballistic Cannon Improved Light Cannon Build | -11 -10 -9 ------- Run | Yrd Mat Mat Slots Evolved 2 | . . 2 Power . | . . . Propulsion . | . . . Utility 2 | . . 2 Weapon . | . . . Parts Attached 37 | 7 6 24 Power 5 | 1 . 4 Engine 4 | 1 . 3 Core 1 | . . 1 Reactor . | . . . Propulsion 8 | 2 1 5 Treads 2 | . . 2 Leg . | . . . Wheel 6 | 2 1 3 Hover . | . . . Flight . | . . . Utility 7 | 2 2 3 Device 2 | 1 . 1 Storage 3 | 1 2 . Processor 2 | . . 2 Hackware . | . . . Protection . | . . . Artifact . | . . . Weapon 17 | 2 3 12 Energy Gun 9 | 2 3 4 Energy Cannon . | . . . Ballistic Gun 6 | . . 6 Ballistic Cannon 2 | . . 2 Launcher . | . . . Special Weapon . | . . . Impact Weapon . | . . . Slashing Weapon . | . . . Piercing Weapon . | . . . Special Melee Weapon . | . . . Unidentified Prototypes . | . . . Parts Lost 10 | . 2 8 Power 1 | . . 1 Propulsion 6 | . 2 4 Utility 1 | . . 1 Weapon 2 | . . 2 Highest Loss Streak 5 | . 2 5 To Critical Strikes . | . . . Average Slot Usage (%) 89 | . 88 91 Engine 12 | . 14 10 Treads 1 | . . 4 Wheel 14 | . 17 11 Device 13 | . 14 13 Storage 12 | . 14 11 Processor 7 | . . 17 Energy Gun 20 | . 28 9 Ballistic Gun 4 | . . 12 Naked Turns . | . . . Heaviest Build 90 | 15 90 25 Greatest Support 40 | 20 20 40 Greatest Overweight (x) 7 | . 7 7 Average Overweight (x) 1 | . 2 . Largest Inventory Capacity 25 | 8 25 10 Average Capacity 12 | 6 13 10 Most Carried 10 | 3 6 10 Average Carried 4 | 1 4 6 Final Capacity 10 | 8 10 10 Final Carried 6 | 2 6 4 Class Distribution -------------------- 64% | Mutant 35% | Scavenger-Mutant Dominant Class ---------------- Mutant | -10/Materials Scavenger-Mutant | -9/Materials Resources | -11 -10 -9 ----------- Run | Yrd Mat Mat Matter Collected 605 | 220 100 285 Remotely . | . . . Salvage Created 1411 | 11 398 1002 Parts 85 | 5 17 63 Haulers Intercepted 3 | . 2 1 Recyclers Shooed 1 | . . 1 Parts Field Recycled . | . . . Retrieved Matter . | . . . Parts Self-Destructed . | . . . Prevented . | . . . Kills | -11 -10 -9 ------- Run | Yrd Mat Mat Combat Hostiles Destroyed 21 | . 5 16 Guns 17 | . 3 14 Cannons 2 | . . 2 Classes Destroyed 9 | 1 5 3 Worker 5 | . 1 4 Tunneler 3 | 1 1 1 Hauler 3 | . 2 1 Recycler 2 | . . 2 Operator 1 | . 1 . Watcher 3 | . 2 1 Swarmer 3 | . . 3 Grunt 11 | . 5 6 Sentry 7 | . . 7 Best Kill Streak 10 | 1 2 10 Combat Bots Only 6 | . 1 6 Max Kills in Single Turn 2 | 1 1 2 Gunslinging . | . . . Exploded . | . . . Melee . | . . . Uniques/NPCs Destroyed . | . . . Combat | -11 -10 -9 -------- Run | Yrd Mat Mat Hostile Shots Fired 148 | . 30 118 Missed 36 | . 7 29 Damage Taken 1343 | . 257 1086 Core 302 | . 87 215 Absorbed by Shields . | . . . Core Remaining (%) 82 | 100 65 . Volleys Fired 97 | 1 41 55 Largest 2 | 2 2 2 Hottest 112 | 100 112 112 Shots Fired 187 | 2 78 107 Gun 181 | 2 78 101 Cannon 6 | . . 6 Launcher . | . . . Special . | . . . Kinetic 70 | . . 70 Thermal 117 | 2 78 37 Explosive . | . . . Electromagnetic . | . . . Robot Hit Streak 20 | 1 20 15 Robot Miss Streak 4 | . 3 4 Penetration Max . | . . . Secondary Targets 2 | . . 2 Max Gunslinging Chain 1 | . . 1 Shots Hit Robots 127 | 1 58 68 Core Hits 55 | 1 18 36 Critical Kills . | . . . Critical Parts Destroyed . | . . . Critical Strikes 11 | . 9 2 Burn 11 | . 9 2 Melee Attacks . | . . . Impact . | . . . Slashing . | . . . Piercing . | . . . Sneak Attacks . | . . . Combat Hostiles . | . . . Follow-up Attacks . | . . . Damage Inflicted 1958 | 25 766 1167 Guns 1853 | 25 766 1062 Cannons 105 | . . 105 Explosions . | . . . Melee . | . . . Ramming . | . . . Kinetic 779 | . . 779 Thermal 1179 | 25 766 388 Explosive . | . . . Electromagnetic . | . . . Impact . | . . . Slashing . | . . . Piercing . | . . . Highest Corruption . | . . . Average Corruption . | . . . Corruption Purged . | . . . Corruption Blocked . | . . . Overload Shots . | . . . Overflow Damage . | . . . Projectiles . | . . . Explosions . | . . . Melee . | . . . Knockbacks . | . . . Impact . | . . . Kinetic . | . . . Secondary . | . . . Self-Inflicted Damage . | . . . Shots . | . . . Rammed . | . . . Targets Rammed . | . . . Kicked . | . . . Crushed . | . . . Highest Temperature 449 | 39 449 267 Average Temperature 109 | 24 130 80 Received Heat Transfer 471 | . 141 330 Effects 7 | . 5 2 Shutdowns 1 | . 1 . Energy Bleed 3 | . 3 . Interference 2 | . . 2 Short Circuit 1 | . 1 . Siege Activations . | . . . Robots Corrupted . | . . . Combat Hostiles . | . . . Parts Fried . | . . . Impact Corruptions . | . . . Robots Melted 2 | . 2 . Combat Hostiles 2 | . 2 . Parts Melted 12 | . 9 3 Heat Transferred 4070 | 74 2812 1184 Parts Sabotaged . | . . . Parts Stolen . | . . . Parts Stripped . | . . . Power Chain Reactions . | . . . Alert | -11 -10 -9 ------- Run | Yrd Mat Mat Peak Influence 282 | 5 169 282 Initial 3 | . 3 2 Average 85 | . 69 120 Maximum Alert Level 1 | . . 1 Low Security (%) 96 | 100 100 90 Level 1 3 | . . 9 Level 2 . | . . . Level 3 . | . . . Level 4 . | . . . Level 5 . | . . . High Security . | . . . Max Security . | . . . Squads Dispatched 4 | . 3 1 Investigation . | . . . Extermination . | . . . Reinforcement 4 | . 3 1 Assault . | . . . Garrison . | . . . Intercept . | . . . Searches Triggered . | . . . Construction Impeded . | . . . Haulers Reinforced . | . . . Active Scanning Responses . | . . . Cargo Convoy Interrupts . | . . . Stealth | -11 -10 -9 --------- Run | Yrd Mat Mat Distress Signals . | . . . Communications Jammed . | . . . Distress Signals . | . . . Times Spotted 34 | . 13 21 Peak Tracking Total 7 | . 2 7 Tactical Retreats 4 | . 3 1 Traps | -11 -10 -9 ------- Run | Yrd Mat Mat Traps Triggered . | . . . Indirectly . | . . . Trap Hack Attempts . | . . . Triggered . | . . . Disarmed . | . . . Reprogrammed . | . . . Reused . | . . . Traps Extracted . | . . . Installed . | . . . Triggered . | . . . Machines | -11 -10 -9 ---------- Run | Yrd Mat Mat Machines Disabled . | . . . Max in Single Turn . | . . . Machines Repaired . | . . . Machines Dismantled . | . . . Machines Sabotaged . | . . . Overloaded Fab Kills . | . . . Hacking | -11 -10 -9 --------- Run | Yrd Mat Mat Machines Accessed . | . . . Terminals . | . . . Fabricators . | . . . Repair Stations . | . . . Recycling Units . | . . . Scanalyzers . | . . . Garrison Access . | . . . Total Hacks . | . . . Successful . | . . . Failed . | . . . Catastrophic . | . . . Database Lockouts . | . . . Manual . | . . . Terminals . | . . . Fabricators . | . . . Repair Stations . | . . . Recycling Units . | . . . Scanalyzers . | . . . Garrison Access . | . . . Terminal Hacks . | . . . Fabricator Hacks . | . . . Repair Station Hacks . | . . . Recycling Unit Hacks . | . . . Scanalyzer . | . . . Garrison Access Hacks . | . . . Unauthorized Hacks . | . . . Terminals . | . . . Fabricators . | . . . Repair Stations . | . . . Recycling Units . | . . . Scanalyzers . | . . . Garrison Access . | . . . Data Cores Recovered . | . . . Used . | . . . Hacking Detections . | . . . Full Trace Events . | . . . Feedback Events . | . . . Feedback Blocked . | . . . Robot Schematics Acquired . | . . . Robots Built . | . . . Authchips . | . . . Time . | . . . Total Robot Build Rating . | . . . Part Schematics Acquired . | . . . Parts Built . | . . . Authchips . | . . . Time . | . . . Total Part Build Rating . | . . . Parts Repaired . | . . . Time . | . . . Parts Recycled . | . . . Recycled Matter . | . . . Retrieved Matter . | . . . Retrieved Components . | . . . Parts Scanalyzed . | . . . Part Schematics Acquired . | . . . Parts Damaged . | . . . Bothacking | -11 -10 -9 ------------ Run | Yrd Mat Mat Used RIF Installer . | . . . Robots Hacked . | . . . Non-combat . | . . . Combat . | . . . Robot Hacks Applied . | . . . Relay Couplers Released . | . . . Fabnet Peak Effective % . | . . . Robots Rewired . | . . . Allies Hacked . | . . . Hacks Repelled . | . . . Allies | -11 -10 -9 -------- Run | Yrd Mat Mat Total Allies . | . . . Largest Group . | . . . Highest-Rated Group . | . . . Highest-Rated Ally . | . . . Total Orders . | . . . Ally Attacks . | . . . Total Damage . | . . . Kills . | . . . Allies Corrupted . | . . . Allies Melted . | . . . Intel | -11 -10 -9 ------- Run | Yrd Mat Mat Robot Analysis Total . | . . . Derelict Logs Recovered . | . . . Drone Launches . | . . . Drone Recoveries . | . . . Exploration | -11 -10 -9 ------------- Run | Yrd Mat Mat Turns Passed 1573 | 67 910 596 Spaces Moved 873 | 62 538 273 Core 56 | 3 51 2 Treads 46 | . . 46 Legs . | . . . Wheels 771 | 59 487 225 Hover . | . . . Flight . | . . . Fastest Speed 50 | 50 80 90 Average Speed 124 | 78 135 113 Slowest Speed 400 | 80 400 400 Overloaded Moves . | . . . Propulsion Burnouts . | . . . Robots Hopped . | . . . Cave-ins Triggered . | . . . Exploration Rate (%) 35 | 4 71 30 Regions Visited 2 Branch Regions . Pre-discovered Areas . | . . . Known Exits Taken . | . . . Unknown Exits Taken 2 | 1 1 . Scrap Searched . | . . . Spaces Dug . | . . . Terrain Destroyed . | . . . Melee . | . . . Projectile . | . . . AOE . | . . . Terrain Rammed . | . . . Walls Destroyed . | . . . Machines Disabled . | . . . Actions | -11 -10 -9 --------- Run | Yrd Mat Mat Total 1177 | 78 642 457 Wait 124 | . 47 77 Move 871 | 61 537 273 Hop . | . . . Pick Up 34 | 9 8 17 Fast Attach . | . . . Attach 16 | 7 1 8 Detach . | . . . Swap 21 | . 5 16 Drop 14 | . 3 11 Fire 97 | 1 41 55 Melee . | . . . Ram . | . . . Kick . | . . . Crush . | . . . Escape Stasis . | . . . Rewire . | . . . Trap . | . . . Miscellaneous . | . . . Route ------- -11/Scrapyard -10/Materials -9/Materials (discovered 1 exit: [*Mat]) History --------- Turn | Location | Event 28 | -11/Scrapyard | Discovered new exit (range 16) 68 | -11/Scrapyard | Entered Materials 308 | -10/Materials | Build established: Mutant 837 | -10/Materials | Discovered new exit (range 15) 978 | -10/Materials | Entered another Materials area 978 | -9/Materials | Evolved 2 slots: Utility x2 1307 | -9/Materials | Build established: Scavenger-Mutant 1324 | -9/Materials | Discovered new exit (range 3) 1538 | -9/Materials | Core integrity fell below 50% 1574 | -9/Materials | Self-destructed Last Messages --------------- 01545_ Beam Rifle destroyed. 01548_ Y-45 Defender suffers critical hit (Burn). 01548_ Hvy. Assault Rifle melted. 01548_ Heat Sink melted. 01548_ Y-45 Defender destroyed. 01550_ K-01 Serf collects debris. 01554_ Overheating: System interference. 01554_ Beam Rifle temporarily disabled. 01556_ K-01 Serf collects debris. 01557_ G-34 Mercenary destroyed. 01558_ K-01 Serf collects debris. 01559_ K-01 Serf cleans the Neutrino Reactor. 01563_ K-01 Serf collects debris. 01568_ G-34 Mercenary destroyed. 01569_ K-01 Serf collects debris. 01571_ G-34 Mercenary destroyed. 01571_ K-01 Serf destroyed. 01571_ K-01 Serf collects debris. Map ----- +----------------------------------------------------+ | [ *%=! ! + """"" # ###########??? | | !%!! %##### """"" # # """ #??? | | # *##### #???# """ # # "T" #??? | | #######???## ##???# # + !! #??? | | ???????????# #????########## # !! #??? | | ?????????? + #?????????????# ###########??? | | ????????? # #????????????## ## #??? | | ????????" # #????????????# #= #??? | | ???????"" ?# #????????????# # #??? | | ??????""" ?# #????????????# + """ #??? | | ??????? ??# +????????????# # """"" #??? | | ???????##??# #????????????# # """"" #??? | | ???????????# ######???????## ## """"" #??? | | ??????????? !????????# ## """ #??? | | ??????????? ????????# ## #??? | | ??????????# ????????# ###########??? | | ??????????? ?? ????????# #????????????? | | ??????????# """ #???????# ###########??? | | ??????????# """ #???????# # #??? | | ??????????#a """ #???????# # #??? | | ??????????# ! #???????# # #??? | | ?????????????? %=% #???????# # #??? | | ?????????????????#^%%######### + #??? | | ?????????????????#^k^%=== # #??? | | ?????????????????#=k[*k%[ # #??? | | ?????????????????#!k=%[*%@ # #??? | | ?????????????????# %%#######################??? | | ?????????????????# #????????????????????????? | | ?????????????????# #????????????????????????? | | ?????????????????# #????????????????????????? | | ?????????????????# #????????????????????????? | | ?????????????????# #????????????????????????? | | ????????????????? ????????????????????????? | | ????????????????# ????????????????????????? | | ????????????????# ????????????????????????? | | ????????????????# ????????????????????????? | | ????????????????# ????????????????????????? | | ????????????????## #????????????????????????? | | ?????????????????# ?????????????????????????? | | ?????????????????# ?????????????????????????? | | ?????????????????# ?????????????????????????? | | ?????????????????# ?????????????????????????? | | ?????????????????? ?????????????????????????? | | ?????????????????? ?????????????????????????? | | ??????????????????????????????????????????????? | | ??????????????????????????????????????????????? | | ??????????????????????????????????????????????? | | ??????????????????????????????????????????????? | | ??????????????????????????????????????????????? | | ??????????????????????????????????????????????? | +----------------------------------------------------+ Best States ------------- Heat Dissipation 28 Energy Generation 14 Energy Capacity 265 Matter Stores 300 Matter Capacity 300 Sight Range 18 Robot Scan Range 14 Terrain Scan Density 10 Evasion (%) 44 Targeting Accuracy 6 Recoil Reduction 2 Item Schematics ----------------- None Robot Schematics ------------------ None Fabricated ------------ Nothing Alien Tech Used ----------------- None Achievements -------------- None Challenges ------------ None Game ------ Seed ScanShrapnelLink Manual? 0 Play Time 00:12:56 Cumulative 15.3 hours Start 2024.06.16 @ 20:04:48 End 2024.06.16 @ 20:16:52 Sessions 1 Manual Loads 0 Difficulty Rogue Special Mode None Game No. 42 Rogue 42 Adventurer 0 Explorer 0 Win Type - Total 0 Types 0/0/0/0/0/0/0/0/0 Lore% 9 Gallery% 25 Achievement% 18 Wizard Run 0 Options --------- Layout 1 ASCII 0 Keyboard 0 Movement Mouse Keybinds 0 Fullscreen 2 Font 24/Smallcaps Map View 50x35 Zoom Use 0% Tactical HUD 1 Map Filters NONE Filters NONE Steam 1 RUN: 972e9905-c22b-4d77-8b10-e4b893af93e2